fUSD/lending_fUSD_20250128
["ID","MTS","AMOUNT","RATE_DAILY","PERIOD"]
[350661300,1738041039486,-1000.0,0.00019878,2]
[350661302,1738041039496,-150.0,0.00019881,2]
[350661304,1738041039505,-157.58401089,0.00019899,2]
[350661306,1738041039515,-500.0,0.00019899,2]
[350661308,1738041039524,-1252.2476,0.000199,2]
[350661310,1738041039533,-340.8488,0.000199,2]
[350661312,1738041039542,-200.6255,0.000199,2]
[350661314,1738041039552,-3283.8903,0.000199,2]
[350661316,1738041039561,-7656.4366,0.000199,2]
[350661318,1738041039570,-5000.0,0.000199,2]
[350661320,1738041039579,-197.49598328,0.000199,2]
[350661322,1738041039588,-1503.65603219,0.000199,2]
[350661324,1738041039597,-150.0,0.00019927,2]
[350661326,1738041039606,-429.78644604,0.00019932,2]
[350661328,1738041039615,-150.0,0.00019937,2]
[350661330,1738041039625,-150.0,0.00019953,2]
[350661332,1738041039638,-250.0,0.0001997,2]
[350661334,1738041039647,-250.0,0.0001997,2]
[350661336,1738041039656,-504.46506333,0.00019973,2]
[350661338,1738041039665,-164.74214183,0.00019973,2]
[350661340,1738041039676,-151.82037447,0.00019973,2]
[350661342,1738041039685,-500.0,0.00019973,2]
[350661344,1738041039694,-517.85092964,0.00019999,2]
[350661346,1738041039704,-518.12270856,0.00019999,2]
[350661348,1738041039713,-500.0,0.00019999,2]
[350661350,1738041039722,-531.1240031,0.00019999,2]
[350661352,1738041039731,-234.0197032,0.00019999,2]
[350661354,1738041039741,-477.40835058,0.00019999,2]
[350661356,1738041039750,-506.98980362,0.00019999,2]
[350661358,1738041039760,-500.0,0.00019999,2]
[350661360,1738041039769,-508.71235723,0.00019999,2]
[350661361,1738041039778,-626.85245263,0.00019999,2]
[350661362,1738041039786,-500.0,0.00019999,2]
[350661363,1738041039795,-511.34169992,0.00019999,2]
[350661364,1738041039805,-500.0,0.00019999,2]
[350661365,1738041039813,-168.99605069,0.00019999,2]
[350661366,1738041039822,-642.72,0.00019999,2]
[350661367,1738041039831,-642.72,0.00019999,2]
[350661368,1738041039840,-642.72,0.00019999,2]
[350661385,1738041039849,-642.72,0.00019999,2]
[350661387,1738041040009,-500.0,0.00019999,2]
[350661389,1738041040018,-500.0,0.00019999,2]
[350661391,1738041040028,-515.93644069,0.00019999,2]
[350661393,1738041040037,-529.84362235,0.00019999,2]
[350661395,1738041040046,-500.0,0.00019999,2]
[350661397,1738041040054,-515.75649548,0.00019999,2]
[350661399,1738041040064,-500.0,0.00019999,2]
[350661401,1738041040073,-513.73904807,0.00019999,2]
[350661403,1738041040082,-500.0,0.00019999,2]
[350661405,1738041040091,-513.42689862,0.00019999,2]
[350661408,1738041040101,-500.0,0.00019999,2]
[350661411,1738041040110,-500.0,0.00019999,2]
[350661414,1738041040119,-575.88188464,0.00019999,2]
[350661416,1738041040128,-500.0,0.00019999,2]
[350661418,1738041040137,-515.06264462,0.00019999,2]
[350661420,1738041040147,-604.90935379,0.00019999,2]
[350661422,1738041040156,-500.0,0.00019999,2]
[350661424,1738041040165,-517.02498917,0.00019999,2]
[350661426,1738041040174,-500.0,0.00019999,2]
[350661428,1738041040183,-512.44594961,0.00019999,2]
[350661430,1738041040192,-508.12247398,0.00019999,2]
[350661432,1738041040202,-508.91007707,0.00019999,2]
[350661434,1738041040211,-276.18476088,0.00019999,2]
[350661436,1738041040220,-507.84261323,0.00019999,2]
[350661438,1738041040229,-606.13453086,0.00019999,2]
[350661440,1738041040238,-500.0,0.00019999,2]
[350661442,1738041040247,-504.16718576,0.00019999,2]
[350661444,1738041040256,-500.0,0.00019999,2]
[350661446,1738041040265,-500.61542923,0.00019999,2]
[350661448,1738041040275,-500.0,0.00019999,2]
[350661450,1738041040284,-500.90790522,0.00019999,2]
[350661452,1738041040293,-500.0,0.00019999,2]
[350661454,1738041040302,-511.09823981,0.00019999,2]
[350661456,1738041040311,-500.0,0.00019999,2]
[350661458,1738041040321,-501.46155378,0.00019999,2]
[350661460,1738041040330,-500.0,0.00019999,2]
[350661462,1738041040339,-504.00760062,0.00019999,2]
[350661464,1738041040349,-500.0,0.00019999,2]
[350661466,1738041040358,-507.6702408,0.00019999,2]
[350661468,1738041040367,-193.28610937,0.00019999,2]
[350661470,1738041040376,-514.00015073,0.00019999,2]
[350661472,1738041040386,-535.30958887,0.00019999,2]
[350661474,1738041040395,-591.0,0.0002,2]
[350661476,1738041040404,-4393.60187402,0.0002,10]
[350661478,1738041040413,-306269.64895551,0.0002,30]
[350661480,1738041040422,-900.0,0.0002,21]
[350661482,1738041040431,-6090.56705375,0.0002,2]
[350661484,1738041040440,-250.0,0.0002,2]
[350661486,1738041040450,-250.80356549,0.0002,2]
[350661488,1738041040459,-251.0,0.0002,2]
[350661490,1738041040468,-3004.41310141,0.0002,30]
[350661492,1738041040477,-2110.0,0.0002,2]
[350661494,1738041040486,-2000.0,0.0002,2]
[350661496,1738041040495,-2000.2643,0.0002,2]
[350661498,1738041040504,-6164.14153912,0.0002,2]
[350661500,1738041040515,-60051.81070025,0.0002,3]
[350661502,1738041040524,-2000.0,0.0002,2]
[350661504,1738041040533,-2000.1333,0.0002,2]
[350661506,1738041040543,-150.0,0.0002,2]
[350661508,1738041040552,-150.0,0.0002,2]
[350661510,1738041040561,-150.0,0.0002,2]
[350661512,1738041040570,-150.0,0.0002,2]
[350661514,1738041040579,-150.0,0.0002,2]
[350661516,1738041040588,-112139.49360126,0.0002,2]
[350661518,1738041040598,-11302.30217017,0.0002,2]
[350661520,1738041040607,-734.87928138,0.0002,2]
[350661522,1738041040616,-5499.9822218,0.0002,2]
[350661524,1738041040627,-8024.05456009,0.0002,2]
[350661526,1738041040638,-207.0,0.0002,2]
[350661528,1738041040647,-210.0,0.0002,2]
[350661530,1738041040656,-206.0,0.0002,2]
[350661532,1738041040667,-416.0,0.0002,2]
[350661534,1738041040676,-205.0,0.0002,2]
[350661536,1738041040686,-211.0,0.0002,2]
[350661538,1738041040695,-2000.0,0.0002,2]
[350661540,1738041040705,-209.0,0.0002,2]
[350661542,1738041040715,-213.0,0.0002,2]
[350661544,1738041040726,-217.0,0.0002,2]
[350661546,1738041040736,-151.0,0.0002,2]
[350661548,1738041040745,-151.0,0.0002,2]
[350661550,1738041040755,-159.511786,0.0002,2]
[350661552,1738041040764,-159.511786,0.0002,2]
[350661554,1738041040774,-176.647903,0.0002,2]
[350661556,1738041040783,-176.647903,0.0002,2]
[350661558,1738041040792,-500.0,0.0002,2]
[350661560,1738041040801,-500.0,0.0002,2]
[350661562,1738041040811,-151.0,0.0002,2]
[350661564,1738041040820,-151.0,0.0002,2]
[350661566,1738041040830,-160.279918,0.0002,2]
[350661568,1738041040840,-160.279918,0.0002,2]
[350661570,1738041040850,-426.194721,0.0002,2]
[350661572,1738041040859,-426.194721,0.0002,2]
[350661574,1738041040868,-171.851579,0.0002,2]
[350661576,1738041040877,-171.851579,0.0002,2]
[350661578,1738041040886,-288.88861,0.0002,2]
[350661580,1738041040895,-288.88861,0.0002,2]
[350661582,1738041040904,-151.0,0.0002,2]
[350661584,1738041040914,-151.0,0.0002,2]
[350661586,1738041040923,-10000.0,0.0002,2]
[350661588,1738041040933,-12500.0,0.0002,2]
[350661590,1738041040942,-10000.0,0.0002,2]
[350661592,1738041040951,-12500.0,0.0002,2]
[350661594,1738041040960,-157.907369,0.0002,2]
[350661596,1738041040969,-151.0,0.0002,2]
[350661598,1738041040979,-208.0,0.0002,2]
[350661600,1738041040988,-190.94,0.0002,2]
[350661602,1738041040997,-190.94,0.0002,2]
[350661604,1738041041006,-5000.0,0.0002,7]
[350661606,1738041041015,-205.0,0.0002,2]
[350661608,1738041041024,-211.0,0.0002,2]
[350661610,1738041041034,-3746.10638301,0.0002,2]
[350661612,1738041041043,-10000.0,0.0002,2]
[350661614,1738041041052,-4260.0,0.0002,7]
[350661616,1738041041061,-2000.0,0.0002,2]
[350661618,1738041041071,-205.0,0.0002,2]
[350661620,1738041041079,-211.0,0.0002,2]
[350661622,1738041041088,-12500.0,0.0002,2]
[350661624,1738041041097,-208.0,0.0002,2]
[350661626,1738041041106,-205.0,0.0002,2]
[350661628,1738041041115,-211.0,0.0002,2]
[350661630,1738041041124,-208.0,0.0002,2]
[350661632,1738041041133,-205.0,0.0002,2]
[350661634,1738041041142,-211.0,0.0002,2]
[350661636,1738041041151,-208.0,0.0002,2]
[350661638,1738041041160,-2500.0,0.0002,2]
[350661640,1738041041169,-1500.0,0.0002,2]
[350661642,1738041041179,-902.7256,0.0002,2]
[350661644,1738041041188,-500.0,0.0002,2]
[350661646,1738041041196,-500.0,0.0002,2]
[350661647,1738041041205,-500.0,0.0002,2]
[350661650,1738041041215,-500.0,0.0002,2]
[350661652,1738041041224,-500.0,0.0002,2]
[350661653,1738041041233,-500.0,0.0002,2]
[350661655,1738041041242,-500.0,0.0002,2]
[350661657,1738041041251,-500.0,0.0002,2]
[350661659,1738041041260,-500.0,0.0002,2]
[350661661,1738041041269,-500.0,0.0002,2]
[350661663,1738041041278,-500.0,0.0002,2]
[350661665,1738041041287,-500.0,0.0002,2]
[350661667,1738041041296,-500.0,0.0002,2]
[350661669,1738041041304,-500.0,0.0002,2]
[350661671,1738041041314,-500.0,0.0002,2]
[350661673,1738041041323,-500.0,0.0002,2]
[350661675,1738041041332,-500.0,0.0002,2]
[350661677,1738041041341,-500.0,0.0002,2]
[350661679,1738041041352,-500.0,0.0002,2]
[350661681,1738041041362,-500.0,0.0002,2]
[350661683,1738041041371,-500.0,0.0002,2]
[350661686,1738041041380,-500.0,0.0002,2]
[350661687,1738041041389,-500.0,0.0002,2]
[350661690,1738041041398,-500.0,0.0002,2]
[350661691,1738041041407,-500.0,0.0002,2]
[350661693,1738041041416,-500.0,0.0002,2]
[350661695,1738041041425,-500.0,0.0002,2]
[350661698,1738041041434,-500.0,0.0002,2]
[350661700,1738041041444,-500.0,0.0002,2]
[350661701,1738041041453,-500.0,0.0002,2]
[350661704,1738041041463,-500.0,0.0002,2]
[350661706,1738041041472,-500.0,0.0002,2]
[350661708,1738041041481,-500.0,0.0002,2]
[350661709,1738041041490,-500.0,0.0002,2]
[350661711,1738041041499,-500.0,0.0002,2]
[350661713,1738041041508,-500.0,0.0002,2]
[350661715,1738041041517,-500.0,0.0002,2]
[350661717,1738041041526,-500.0,0.0002,2]
[350661719,1738041041535,-500.0,0.0002,2]
[350661720,1738041041544,-500.0,0.0002,2]
[350661721,1738041041554,-500.0,0.0002,2]
[350661722,1738041041563,-500.0,0.0002,2]
[350661723,1738041041572,-500.0,0.0002,2]
[350661724,1738041041582,-500.0,0.0002,2]
[350661725,1738041041591,-500.0,0.0002,2]
[350661726,1738041041600,-500.0,0.0002,2]
[350661727,1738041041609,-500.0,0.0002,2]
[350661729,1738041041618,-500.0,0.0002,2]
[350661731,1738041041631,-500.0,0.0002,2]
[350661733,1738041041641,-500.0,0.0002,2]
[350661735,1738041041650,-500.0,0.0002,2]
[350661736,1738041041659,-500.0,0.0002,2]
[350661737,1738041041669,-500.0,0.0002,2]
[350661738,1738041041678,-500.0,0.0002,2]
[350661739,1738041041687,-500.0,0.0002,2]
[350661740,1738041041696,-500.0,0.0002,2]
[350661741,1738041041706,-500.0,0.0002,2]
[350661742,1738041041715,-500.0,0.0002,2]
[350661743,1738041041724,-500.0,0.0002,2]
[350661744,1738041041733,-500.0,0.0002,2]
[350661745,1738041041742,-500.0,0.0002,2]
[350661746,1738041041751,-500.0,0.0002,2]
[350661748,1738041041760,-500.0,0.0002,2]
[350661750,1738041041769,-500.0,0.0002,2]
[350661752,1738041041778,-500.0,0.0002,2]
[350661754,1738041041787,-500.0,0.0002,2]
[350661756,1738041041796,-500.0,0.0002,2]
[350661758,1738041041805,-500.0,0.0002,2]
[350661760,1738041041814,-500.0,0.0002,2]
[350661761,1738041041823,-500.0,0.0002,2]
[350661763,1738041041832,-500.0,0.0002,2]
[350661765,1738041041841,-500.0,0.0002,2]
[350661767,1738041041851,-500.0,0.0002,2]
[350661769,1738041041860,-500.0,0.0002,2]
[350661771,1738041041869,-500.0,0.0002,2]
[350661773,1738041041878,-500.0,0.0002,2]
[350661775,1738041041887,-500.0,0.0002,2]
[350661777,1738041041896,-500.0,0.0002,2]
[350661779,1738041041905,-500.0,0.0002,2]
[350661781,1738041041914,-500.0,0.0002,2]
[350661783,1738041041923,-500.0,0.0002,2]
[350661785,1738041041932,-500.0,0.0002,2]
[350661787,1738041041941,-500.0,0.0002,2]
[350661789,1738041041950,-500.0,0.0002,2]
[350661791,1738041041960,-500.0,0.0002,2]
[350661793,1738041041968,-500.0,0.0002,2]
[350661795,1738041041977,-500.0,0.0002,2]
[350661797,1738041041987,-500.0,0.0002,2]
[350661799,1738041041995,-500.0,0.0002,2]
[350661801,1738041042005,-500.0,0.0002,2]
[350661803,1738041042014,-500.0,0.0002,2]
[350661805,1738041042023,-500.0,0.0002,2]
[350661807,1738041042032,-500.0,0.0002,2]
[350661809,1738041042041,-500.0,0.0002,2]
[350661811,1738041042050,-500.0,0.0002,2]
[350661813,1738041042059,-500.0,0.0002,2]
[350661815,1738041042068,-500.0,0.0002,2]
[350661817,1738041042077,-500.0,0.0002,2]
[350661819,1738041042086,-500.0,0.0002,2]
[350661820,1738041042095,-500.0,0.0002,2]
[350661822,1738041042104,-500.0,0.0002,2]
[350661824,1738041042113,-500.0,0.0002,2]
[350661827,1738041042124,-500.0,0.0002,2]
[350661828,1738041042133,-500.0,0.0002,2]
[350661830,1738041042142,-506.0,0.0002,2]
[350661832,1738041042152,-150.47604323,0.0002,10]
[350661834,1738041042161,-500.0,0.0002,2]
[350661836,1738041042169,-500.0,0.0002,2]
[350661838,1738041042179,-500.0,0.0002,2]
[350661840,1738041042187,-500.0,0.0002,2]
[350661842,1738041042197,-500.0,0.0002,2]
[350661844,1738041042206,-500.0,0.0002,2]
[350661846,1738041042216,-500.0,0.0002,2]
[350661848,1738041042225,-500.0,0.0002,2]
[350661850,1738041042234,-500.0,0.0002,2]
[350661852,1738041042243,-500.0,0.0002,2]
[350661854,1738041042252,-500.0,0.0002,2]
[350661856,1738041042261,-500.0,0.0002,2]
[350661858,1738041042270,-500.0,0.0002,2]
[350661860,1738041042279,-500.0,0.0002,2]
[350661862,1738041042289,-500.0,0.0002,2]
[350661864,1738041042298,-500.0,0.0002,2]
[350661866,1738041042307,-500.0,0.0002,2]
[350661868,1738041042316,-500.0,0.0002,2]
[350661870,1738041042324,-500.0,0.0002,2]
[350661872,1738041042334,-500.0,0.0002,2]
[350661874,1738041042343,-500.0,0.0002,2]
[350661877,1738041042352,-500.0,0.0002,2]
[350661878,1738041042361,-500.0,0.0002,2]
[350661880,1738041042370,-500.0,0.0002,2]
[350661882,1738041042379,-500.0,0.0002,2]
[350661884,1738041042387,-500.0,0.0002,2]
[350661886,1738041042396,-500.0,0.0002,2]
[350661888,1738041042405,-500.0,0.0002,2]
[350661890,1738041042415,-500.0,0.0002,2]
[350661892,1738041042423,-500.0,0.0002,2]
[350661894,1738041042432,-500.0,0.0002,2]
[350661896,1738041042441,-500.0,0.0002,2]
[350661898,1738041042450,-500.0,0.0002,2]
[350661900,1738041042459,-500.0,0.0002,2]
[350661902,1738041042467,-500.0,0.0002,2]
[350661904,1738041042476,-500.0,0.0002,2]
[350661906,1738041042486,-500.0,0.0002,2]
[350661908,1738041042495,-500.0,0.0002,2]
[350661910,1738041042504,-500.0,0.0002,2]
[350661912,1738041042513,-500.0,0.0002,2]
[350661914,1738041042522,-500.0,0.0002,2]
[350661916,1738041042531,-500.0,0.0002,2]
[350661918,1738041042540,-500.0,0.0002,2]
[350661920,1738041042549,-500.0,0.0002,2]
[350661922,1738041042558,-500.0,0.0002,2]
[350661924,1738041042567,-500.0,0.0002,2]
[350661926,1738041042575,-500.0,0.0002,2]
[350661928,1738041042584,-500.0,0.0002,2]
[350661930,1738041042593,-500.0,0.0002,2]
[350661932,1738041042602,-500.0,0.0002,2]
[350661934,1738041042611,-500.0,0.0002,2]
[350661936,1738041042621,-500.0,0.0002,2]
[350661938,1738041042632,-500.0,0.0002,2]
[350661940,1738041042641,-500.0,0.0002,2]
[350661942,1738041042650,-500.0,0.0002,2]
[350661944,1738041042658,-500.0,0.0002,2]
[350661946,1738041042667,-500.0,0.0002,2]
[350661948,1738041042677,-500.0,0.0002,2]
[350661949,1738041042686,-500.0,0.0002,2]
[350661951,1738041042695,-500.0,0.0002,2]
[350661953,1738041042704,-500.0,0.0002,2]
[350661955,1738041042714,-500.0,0.0002,2]
[350661957,1738041042723,-500.0,0.0002,2]
[350661959,1738041042733,-500.0,0.0002,2]
[350661961,1738041042742,-827.0,0.0002,2]
[350661963,1738041042750,-500.0,0.0002,2]
[350661965,1738041042759,-500.0,0.0002,2]
[350661967,1738041042768,-500.0,0.0002,2]
[350661969,1738041042778,-500.0,0.0002,2]
[350661971,1738041042787,-500.0,0.0002,2]
[350661973,1738041042797,-500.0,0.0002,2]
[350661975,1738041042806,-500.0,0.0002,2]
[350661977,1738041042815,-500.0,0.0002,2]
[350661979,1738041042824,-500.0,0.0002,2]
[350661981,1738041042833,-500.0,0.0002,2]
[350661983,1738041042842,-500.0,0.0002,2]
[350661985,1738041042852,-500.0,0.0002,2]
[350661987,1738041042861,-500.0,0.0002,2]
[350661989,1738041042870,-500.0,0.0002,2]
[350661991,1738041042879,-500.0,0.0002,2]
[350661993,1738041042888,-500.0,0.0002,2]
[350661995,1738041042897,-500.0,0.0002,2]
[350661997,1738041042907,-500.0,0.0002,2]
[350661999,1738041042916,-500.0,0.0002,2]
[350662002,1738041042925,-500.0,0.0002,2]
[350662005,1738041042934,-500.0,0.0002,2]
[350662009,1738041042943,-500.0,0.0002,2]
[350662012,1738041042952,-500.0,0.0002,2]
[350662015,1738041042962,-500.0,0.0002,2]
[350662017,1738041042971,-500.0,0.0002,2]
[350662019,1738041042980,-500.0,0.0002,2]
[350662021,1738041042990,-500.0,0.0002,2]
[350662023,1738041043000,-500.0,0.0002,2]
[350662025,1738041043009,-500.0,0.0002,2]
[350662027,1738041043019,-500.0,0.0002,2]
[350662030,1738041043027,-500.0,0.0002,2]
[350662032,1738041043037,-500.0,0.0002,2]
[350662033,1738041043046,-500.0,0.0002,2]
[350662035,1738041043055,-500.0,0.0002,2]
[350662037,1738041043065,-500.0,0.0002,2]
[350662038,1738041043074,-500.0,0.0002,2]
[350662039,1738041043084,-500.0,0.0002,2]
[350662040,1738041043094,-500.0,0.0002,2]
[350662041,1738041043102,-500.0,0.0002,2]
[350662043,1738041043111,-500.0,0.0002,2]
[350662045,1738041043122,-500.0,0.0002,2]
[350662048,1738041043131,-500.0,0.0002,2]
[350662050,1738041043140,-500.0,0.0002,2]
[350662053,1738041043149,-500.0,0.0002,2]
[350662056,1738041043158,-500.0,0.0002,2]
[350662059,1738041043167,-500.0,0.0002,2]
[350662062,1738041043176,-500.0,0.0002,2]
[350662065,1738041043185,-500.0,0.0002,2]
[350662069,1738041043194,-500.0,0.0002,2]
[350662073,1738041043203,-500.0,0.0002,2]
[350662076,1738041043212,-500.0,0.0002,2]
[350662079,1738041043221,-500.0,0.0002,2]
[350662082,1738041043230,-500.0,0.0002,2]
[350662085,1738041043239,-500.0,0.0002,2]
[350662088,1738041043248,-500.0,0.0002,2]
[350662091,1738041043257,-500.0,0.0002,2]
[350662093,1738041043266,-500.0,0.0002,2]
[350662096,1738041043275,-500.0,0.0002,2]
[350662099,1738041043285,-500.0,0.0002,2]
[350662102,1738041043294,-500.0,0.0002,2]
[350662105,1738041043303,-500.0,0.0002,2]
[350662108,1738041043313,-500.0,0.0002,2]
[350662111,1738041043322,-500.0,0.0002,2]
[350662113,1738041043331,-500.0,0.0002,2]
[350662116,1738041043340,-178.28623567,0.0002,4]
[350662119,1738041043349,-500.0,0.0002,2]
[350662122,1738041043358,-500.0,0.0002,2]
[350662125,1738041043367,-500.0,0.0002,2]
[350662128,1738041043376,-500.0,0.0002,2]
[350662131,1738041043386,-500.0,0.0002,2]
[350662134,1738041043394,-500.0,0.0002,2]
[350662137,1738041043403,-500.0,0.0002,2]
[350662140,1738041043412,-500.0,0.0002,2]
[350662142,1738041043421,-500.0,0.0002,2]
[350662144,1738041043431,-500.0,0.0002,2]
[350662146,1738041043440,-500.0,0.0002,2]
[350662149,1738041043449,-500.0,0.0002,2]
[350662152,1738041043458,-500.0,0.0002,2]
[350662154,1738041043467,-612.0,0.0002,2]
[350662156,1738041043476,-150.0,0.0002,4]
[350662158,1738041043486,-152.26540854,0.0002,4]
[350662160,1738041043495,-1214.8188,0.0002,2]
[350662162,1738041043505,-1214.8188,0.0002,2]
[350662164,1738041043514,-2558.29659,0.0002,2]
[350662166,1738041043523,-478.2847,0.0002,2]
[350662168,1738041043532,-478.2847,0.0002,2]
[350662170,1738041043541,-151.64683236,0.0002,10]
[350662172,1738041043551,-159.0,0.0002,2]
[350662174,1738041043560,-159.0,0.0002,2]
[350662176,1738041043569,-869.0459,0.0002,2]
[350662178,1738041043579,-869.0459,0.0002,2]
[350662180,1738041043588,-2000.0,0.0002001,2]
[350662182,1738041043598,-3812.862749,0.0002002,2]
[350662184,1738041043607,-186.97663198,0.00020023,2]
[350662186,1738041043616,-438.99,0.00020027,2]
[350662188,1738041043628,-773.96,0.00020027,2]
[350662190,1738041043637,-438.99,0.00020027,2]
[350662192,1738041043647,-773.96,0.00020027,2]
[350662194,1738041043656,-438.99,0.00020027,2]
[350662196,1738041043666,-773.96,0.00020027,2]
[350662198,1738041043676,-500.0,0.00020027,2]
[350662200,1738041043686,-164.29648912,0.00020029,2]
[350662202,1738041043695,-14409.42,0.00020031,2]
[350662204,1738041043705,-190.83666666,0.00020034,2]
[350662206,1738041043715,-642.72,0.00020039,2]
[350662208,1738041043725,-642.72,0.00020039,2]
[350662210,1738041043735,-642.72,0.00020039,2]
[350662212,1738041043744,-642.72,0.00020039,2]
[350662214,1738041043754,-642.7504767,0.00020039,2]
[350662216,1738041043763,-12500.0,0.0002004,2]
[350662218,1738041043773,-12499.98,0.0002004,2]
[350662220,1738041043782,-2543.54,0.00020052,2]
[350662222,1738041043792,-12500.0,0.0002008,2]
[350662224,1738041043801,-500.0,0.0002008,2]
[350662226,1738041043810,-2500.0,0.00020086,2]
[350662228,1738041043819,-2520.78,0.00020086,2]
[350662246,1738041043955,-2000.0,0.00020089,2]
[350662249,1738041043994,-164.80713004,0.00020098,2]
[350662251,1738041044004,-10000.0,0.00020107,2]
[350662253,1738041044014,-9999.99,0.00020107,2]
[350662255,1738041044023,-10000.0,0.00020107,2]
[350662257,1738041044032,-151.0,0.00020107,2]
[350662259,1738041044042,-176.170102,0.00020107,2]
[350662261,1738041044051,-159.511786,0.00020107,2]
[350662263,1738041044060,-159.511786,0.00020107,2]
[350662265,1738041044070,-176.647903,0.00020107,2]
[350662267,1738041044080,-176.647903,0.00020107,2]
[350662269,1738041044089,-500.0,0.00020107,2]
[350662271,1738041044099,-500.0,0.00020107,2]
[350662273,1738041044108,-151.0,0.00020107,2]
[350662275,1738041044118,-152.042721,0.00020107,2]
[350662277,1738041044128,-160.279918,0.00020107,2]
[350662279,1738041044137,-160.279918,0.00020107,2]
[350662281,1738041044147,-426.194721,0.00020107,2]
[350662283,1738041044156,-426.194721,0.00020107,2]
[350662285,1738041044166,-171.851579,0.00020107,2]
[350662287,1738041044175,-171.851579,0.00020107,2]
[350662289,1738041044184,-288.88861,0.00020107,2]
[350662291,1738041044194,-288.88861,0.00020107,2]
[350662294,1738041044204,-151.0,0.00020107,2]
[350662296,1738041044214,-210.613209,0.00020107,2]
[350662298,1738041044224,-157.907369,0.00020107,2]
[350662300,1738041044233,-151.0,0.00020107,2]
[350662302,1738041044243,-190.94,0.00020107,2]
[350662304,1738041044252,-190.94,0.00020107,2]
[350662306,1738041044261,-25000.0,0.00020108,2]
[350662308,1738041044271,-743.57,0.00020116,2]
[350662310,1738041044281,-12500.0,0.0002012,2]
[350662312,1738041044290,-1543.86,0.00020122,2]
[350662314,1738041044299,-5992.88033684,0.00020123,2]
[350662316,1738041044308,-68829.3195253,0.00020123,2]
[350662318,1738041044318,-2539.2,0.00020129,2]
[350662320,1738041044327,-2580.54,0.00020157,2]
[350662322,1738041044337,-12500.0,0.0002016,2]
[350662324,1738041044346,-500.0,0.0002018,2]
[350662326,1738041044355,-1503.6560321,0.00020186,2]
[350662328,1738041044364,-150.0,0.00020187,2]
[350662330,1738041044374,-272.88,0.00020196,30]
[350662332,1738041044385,-12500.0,0.000202,2]
[350662334,1738041044394,-1000.0,0.000202,2]
[350662336,1738041044403,-10000.0,0.00020213,2]
[350662338,1738041044413,-6253.74,0.00020213,2]